[Event "Late-Titled-Tuesday-Blitz-October-24-2023"]
[Site "Chess.com"]
[Date "2023.10.24"]
[Round "8"]
[White "Angry_Twin"]
[Black "FabianoCaruana"]
[Result "1-0"]
[WhiteElo "2955"]
[BlackElo "3082"]
[TimeControl "180+1"]
[EndTime "15:27:44 PDT"]
[Termination "Angry_Twin won by resignation"]

1. d4 {[%clk 0:03:00.9]} 1... Nf6 {[%clk 0:03:00.3]} 2. c4 {[%clk 0:03:01.2]}
2... g6 {[%clk 0:03:00.8]} 3. Nf3 {[%clk 0:03:00.8]} 3... d6 {[%clk 0:03:01.2]}
4. g3 {[%clk 0:02:59.6]} 4... Bg7 {[%clk 0:03:00.8]} 5. Bg2 {[%clk 0:03:00.1]}
5... O-O {[%clk 0:03:00.6]} 6. O-O {[%clk 0:03:00.7]} 6... c6 {[%clk 0:03:00.2]}
7. Nc3 {[%clk 0:03:00.2]} 7... Bf5 {[%clk 0:03:00.8]} 8. Qb3 {[%clk 0:02:57.2]}
8... Qc7 {[%clk 0:02:53.2]} 9. Bf4 {[%clk 0:02:48.8]} 9... Re8 {[%clk
0:02:40.2]} 10. c5 {[%clk 0:02:46.8]} 10... Be6 {[%clk 0:02:38.6]} 11. Qc2
{[%clk 0:02:46]} 11... Na6 {[%clk 0:02:34.1]} 12. e4 {[%clk 0:02:39.4]} 12...
Qd7 {[%clk 0:02:34.1]} 13. cxd6 {[%clk 0:02:34.9]} 13... exd6 {[%clk 0:02:35]}
14. Rfe1 {[%clk 0:02:32.3]} 14... Nc7 {[%clk 0:02:17.7]} 15. Rad1 {[%clk
0:02:30.1]} 15... h6 {[%clk 0:02:10.8]} 16. Qc1 {[%clk 0:02:20.7]} 16... g5
{[%clk 0:02:09.9]} 17. Be3 {[%clk 0:01:50.3]} 17... Bh3 {[%clk 0:02:08.5]} 18.
Bh1 {[%clk 0:01:40.1]} 18... Ng4 {[%clk 0:02:00.3]} 19. Bd2 {[%clk 0:01:18]}
19... Rad8 {[%clk 0:01:47]} 20. a3 {[%clk 0:01:12.7]} 20... a6 {[%clk
0:01:42.5]} 21. Qc2 {[%clk 0:01:00.5]} 21... Nf6 {[%clk 0:01:35.2]} 22. Bc1
{[%clk 0:00:59.3]} 22... Nb5 {[%clk 0:01:24.2]} 23. Nxb5 {[%clk 0:00:52.1]}
23... axb5 {[%clk 0:01:23.6]} 24. Nd2 {[%clk 0:00:50.6]} 24... Bg4 {[%clk
0:01:15.5]} 25. f3 {[%clk 0:00:50]} 25... Bh5 {[%clk 0:01:15.5]} 26. Qd3 {[%clk
0:00:48.9]} 26... Bg6 {[%clk 0:01:14.8]} 27. Qf1 {[%clk 0:00:35.2]} 27... Qe6
{[%clk 0:01:04.9]} 28. Qf2 {[%clk 0:00:34.9]} 28... h5 {[%clk 0:00:55.3]} 29.
Bg2 {[%clk 0:00:22.1]} 29... c5 {[%clk 0:00:51.3]} 30. d5 {[%clk 0:00:21.5]}
30... Qe7 {[%clk 0:00:48.7]} 31. Kh1 {[%clk 0:00:21.7]} 31... Rc8 {[%clk
0:00:30.5]} 32. Qf1 {[%clk 0:00:20.4]} 32... c4 {[%clk 0:00:28.9]} 33. a4 {[%clk
0:00:20.9]} 33... Nd7 {[%clk 0:00:20.3]} 34. axb5 {[%clk 0:00:20.9]} 34... Ne5
{[%clk 0:00:20.6]} 35. Re3 {[%clk 0:00:20.9]} 35... Nd3 {[%clk 0:00:19.1]} 36.
Nxc4 {[%clk 0:00:17.8]} 36... Nxc1 {[%clk 0:00:18.3]} 37. Rxc1 {[%clk 0:00:18]}
37... h4 {[%clk 0:00:14.4]} 38. e5 {[%clk 0:00:18]} 38... dxe5 {[%clk
0:00:11.1]} 39. d6 {[%clk 0:00:18.5]} 39... Qd7 {[%clk 0:00:08.9]} 40. Rd1
{[%clk 0:00:19]} 40... Rcd8 {[%clk 0:00:06.3]} 41. Nb6 {[%clk 0:00:18.7]} 41...
Qe6 {[%clk 0:00:06.9]} 42. Nc4 {[%clk 0:00:13.6]} 42... Bf5 {[%clk 0:00:05.3]}
43. g4 {[%clk 0:00:13.7]} 43... Bc2 {[%clk 0:00:05.5]} 44. Rd2 {[%clk 0:00:13]}
44... Bg6 {[%clk 0:00:05.8]} 45. h3 {[%clk 0:00:13.5]} 45... e4 {[%clk
0:00:06.3]} 46. fxe4 {[%clk 0:00:13.6]} 46... Rd7 {[%clk 0:00:06.3]} 47. e5
{[%clk 0:00:13.7]} 47... Rf8 {[%clk 0:00:03.8]} 48. Bd5 {[%clk 0:00:13.7]} 48...
Qe8 {[%clk 0:00:03.6]} 49. Qf3 {[%clk 0:00:14.1]} 49... Kh8 {[%clk 0:00:03.8]}
50. Rf2 {[%clk 0:00:14.4]} 50... Qd8 {[%clk 0:00:04.2]} 51. Re1 {[%clk
0:00:12.3]} 51... Kh7 {[%clk 0:00:03.1]} 52. Qe3 {[%clk 0:00:12.6]} 52... Kh8
{[%clk 0:00:03.6]} 53. Be4 {[%clk 0:00:13]} 53... Bxe4+ {[%clk 0:00:03.2]} 54.
Qxe4 {[%clk 0:00:13.3]} 54... Re8 {[%clk 0:00:04.1]} 55. Qd5 {[%clk 0:00:13.3]}
55... Re6 {[%clk 0:00:04.2]} 56. Rf5 {[%clk 0:00:12.8]} 56... Qe8 {[%clk
0:00:03]} 57. Ref1 {[%clk 0:00:13.2]} 57... f6 {[%clk 0:00:02.5]} 58. exf6
{[%clk 0:00:12.8]} 58... Bxf6 {[%clk 0:00:02.2]} 59. Rxf6 {[%clk 0:00:11.6]}
59... Rxf6 {[%clk 0:00:03.1]} 60. Rxf6 {[%clk 0:00:11.8]} 60... Qe1+ {[%clk
0:00:03.7]} 61. Kg2 {[%clk 0:00:08.3]} 61... Qg3+ {[%clk 0:00:04.6]} 62. Kf1
{[%clk 0:00:06.5]} 62... Qxh3+ {[%clk 0:00:05.1]} 63. Qg2 {[%clk 0:00:06.4]}
63... Qd3+ {[%clk 0:00:05]} 64. Qe2 {[%clk 0:00:06.8]} 64... Qh3+ {[%clk
0:00:03.6]} 65. Ke1 {[%clk 0:00:07.1]} 65... Qg3+ {[%clk 0:00:03.8]} 66. Kd2
{[%clk 0:00:06.9]} 66... Rd8 {[%clk 0:00:04]} 67. Qe7 {[%clk 0:00:07.1]} 67...
Qg2+ {[%clk 0:00:03.4]} 68. Kc3 {[%clk 0:00:07.5]} 68... Qg3+ {[%clk 0:00:02.9]}
69. Kb4 {[%clk 0:00:07.9]} 69... Ra8 {[%clk 0:00:03.1]} 70. Rh6+ {[%clk
0:00:07.8]} 1-0

[Event "Late-Titled-Tuesday-Blitz-October-24-2023"]
[Site "Chess.com"]
[Date "2023.10.24"]
[Round "8"]
[White "Kirill_Klukin"]
[Black "Semetey"]
[Result "1-0"]
[WhiteElo "2637"]
[BlackElo "2517"]
[TimeControl "180+1"]
[EndTime "15:27:49 PDT"]
[Termination "Kirill_Klukin won on time"]

1. d4 {[%clk 0:02:57.5]} 1... a6 {[%clk 0:02:57]} 2. c4 {[%clk 0:02:56.5]} 2...
e6 {[%clk 0:02:55.5]} 3. Nc3 {[%clk 0:02:56.5]} 3... d5 {[%clk 0:02:55.7]} 4.
cxd5 {[%clk 0:02:56.9]} 4... exd5 {[%clk 0:02:55.3]} 5. Bf4 {[%clk 0:02:57.7]}
5... c6 {[%clk 0:02:55]} 6. e3 {[%clk 0:02:57.6]} 6... Bd6 {[%clk 0:02:55]} 7.
Qf3 {[%clk 0:02:56.3]} 7... Ne7 {[%clk 0:02:53.4]} 8. Bd3 {[%clk 0:02:56.3]}
8... Bf5 {[%clk 0:02:46]} 9. Bxf5 {[%clk 0:02:47.2]} 9... Nxf5 {[%clk
0:02:35.4]} 10. Nge2 {[%clk 0:02:47.3]} 10... O-O {[%clk 0:02:33.5]} 11. h3
{[%clk 0:02:45.5]} 11... Re8 {[%clk 0:02:26.9]} 12. g4 {[%clk 0:02:37.5]} 12...
Bxf4 {[%clk 0:02:24.4]} 13. gxf5 {[%clk 0:02:18.3]} 13... Bh6 {[%clk 0:02:18.2]}
14. Rg1 {[%clk 0:02:12.9]} 14... Nd7 {[%clk 0:02:17.3]} 15. O-O-O {[%clk
0:02:07.9]} 15... Nf6 {[%clk 0:02:12.1]} 16. Ng3 {[%clk 0:02:06.9]} 16... Rc8
{[%clk 0:01:47.8]} 17. Nh5 {[%clk 0:02:04.2]} 17... Nxh5 {[%clk 0:01:47.2]} 18.
Qxh5 {[%clk 0:02:04.5]} 18... Qf6 {[%clk 0:01:47.2]} 19. Kb1 {[%clk 0:02:04.8]}
19... b5 {[%clk 0:01:37.5]} 20. Ne2 {[%clk 0:02:00.7]} 20... a5 {[%clk
0:01:32.3]} 21. Ng3 {[%clk 0:02:00]} 21... c5 {[%clk 0:01:29.1]} 22. Qf3 {[%clk
0:01:44.6]} 22... c4 {[%clk 0:01:22.3]} 23. Nh5 {[%clk 0:01:38.7]} 23... Qe7
{[%clk 0:01:18.4]} 24. Nxg7 {[%clk 0:01:29.1]} 24... Bxg7 {[%clk 0:01:12.5]} 25.
f6 {[%clk 0:01:29.5]} 25... Qe4+ {[%clk 0:01:12.8]} 26. Qxe4 {[%clk 0:01:29.8]}
26... Rxe4 {[%clk 0:01:13]} 27. Rxg7+ {[%clk 0:01:30.5]} 27... Kh8 {[%clk
0:01:11.2]} 28. Rxf7 {[%clk 0:01:30.7]} 28... Re6 {[%clk 0:01:08.8]} 29. Rg1
{[%clk 0:01:12.4]} 29... Rg8 {[%clk 0:01:08.1]} 30. Rfg7 {[%clk 0:00:47.9]}
30... Rxg7 {[%clk 0:01:01.1]} 31. fxg7+ {[%clk 0:00:48.8]} 31... Kg8 {[%clk
0:01:01.4]} 32. Rg5 {[%clk 0:00:49.6]} 32... Rd6 {[%clk 0:00:56.8]} 33. Kc2
{[%clk 0:00:49.7]} 33... b4 {[%clk 0:00:56.5]} 34. Kd2 {[%clk 0:00:44.8]} 34...
a4 {[%clk 0:00:53.9]} 35. a3 {[%clk 0:00:30.8]} 35... bxa3 {[%clk 0:00:44.8]}
36. bxa3 {[%clk 0:00:31.7]} 36... h6 {[%clk 0:00:45.1]} 37. Re5 {[%clk
0:00:28.2]} 37... Kxg7 {[%clk 0:00:44.5]} 38. Kc3 {[%clk 0:00:28.9]} 38... Kf6
{[%clk 0:00:41.4]} 39. f3 {[%clk 0:00:25.1]} 39... Rb6 {[%clk 0:00:32.5]} 40.
Rxd5 {[%clk 0:00:20.1]} 40... Rb3+ {[%clk 0:00:32.5]} 41. Kxc4 {[%clk
0:00:20.8]} 41... Rxe3 {[%clk 0:00:32.8]} 42. Rd6+ {[%clk 0:00:16.4]} 42... Kg5
{[%clk 0:00:31.5]} 43. h4+ {[%clk 0:00:07.1]} 43... Kxh4 {[%clk 0:00:28.3]} 44.
Rxh6+ {[%clk 0:00:07.6]} 44... Kg5 {[%clk 0:00:28.9]} 45. Ra6 {[%clk 0:00:06.3]}
45... Rxa3 {[%clk 0:00:28.8]} 46. Kd5 {[%clk 0:00:04.4]} 46... Kf5 {[%clk
0:00:20.2]} 47. Kd6 {[%clk 0:00:04.7]} 47... Ra1 {[%clk 0:00:19.5]} 48. d5
{[%clk 0:00:04.9]} 48... a3 {[%clk 0:00:19.8]} 49. Kd7 {[%clk 0:00:05.4]} 49...
a2 {[%clk 0:00:16.9]} 50. d6 {[%clk 0:00:05.5]} 50... Kf6 {[%clk 0:00:11.1]} 51.
f4 {[%clk 0:00:04.8]} 51... Kf5 {[%clk 0:00:08.7]} 52. Ra4 {[%clk 0:00:05.4]}
52... Kf6 {[%clk 0:00:08.1]} 53. Ra5 {[%clk 0:00:05.7]} 53... Kf7 {[%clk
0:00:08]} 54. f5 {[%clk 0:00:03.1]} 54... Kf6 {[%clk 0:00:08.1]} 55. Kd8 {[%clk
0:00:02.2]} 55... Kf7 {[%clk 0:00:08.2]} 56. d7 {[%clk 0:00:02.6]} 56... Kf8
{[%clk 0:00:07.6]} 57. Ra3 {[%clk 0:00:02.7]} 57... Kf7 {[%clk 0:00:06.9]} 58.
Ra6 {[%clk 0:00:03.5]} 58... Kg7 {[%clk 0:00:06.1]} 59. f6+ {[%clk 0:00:02.1]}
59... Kf7 {[%clk 0:00:05.9]} 60. Kc8 {[%clk 0:00:02.1]} 60... Rc1+ {[%clk
0:00:05.6]} 61. Kb7 {[%clk 0:00:02.8]} 61... Rd1 {[%clk 0:00:05.7]} 62. Kc7
{[%clk 0:00:02.8]} 62... Rc1+ {[%clk 0:00:05.9]} 63. Kb8 {[%clk 0:00:03]} 63...
Rb1+ {[%clk 0:00:05.9]} 64. Kc8 {[%clk 0:00:03.6]} 64... Rc1+ {[%clk 0:00:06]}
65. Kb7 {[%clk 0:00:04.2]} 65... Rd1 {[%clk 0:00:06.4]} 66. Kc7 {[%clk
0:00:04.6]} 66... Rxd7+ {[%clk 0:00:05.9]} 67. Kxd7 {[%clk 0:00:04.5]} 67...
a1=Q {[%clk 0:00:06.8]} 68. Rxa1 {[%clk 0:00:04.8]} 68... Kxf6 {[%clk
0:00:06.5]} 69. Ra6+ {[%clk 0:00:04.9]} 69... Ke5 {[%clk 0:00:06.7]} 70. Re6+
{[%clk 0:00:04.6]} 70... Kd4 {[%clk 0:00:07.6]} 71. Ke7 {[%clk 0:00:05]} 1-0

[Event "Late-Titled-Tuesday-Blitz-October-24-2023"]
[Site "Chess.com"]
[Date "2023.10.24"]
[Round "8"]
[White "Chempiblinka"]
[Black "Tunahan_Makaraci"]
[Result "1-0"]
[WhiteElo "2333"]
[BlackElo "2412"]
[TimeControl "180+1"]
[EndTime "15:27:52 PDT"]
[Termination "Chempiblinka won by resignation"]

1. Nf3 {[%clk 0:02:56]} 1... d5 {[%clk 0:02:58.1]} 2. g3 {[%clk 0:02:55.4]} 2...
c5 {[%clk 0:02:56]} 3. Bg2 {[%clk 0:02:55.5]} 3... Nf6 {[%clk 0:02:55.7]} 4. c4
{[%clk 0:02:56.1]} 4... e6 {[%clk 0:02:55.6]} 5. O-O {[%clk 0:02:55]} 5... Nc6
{[%clk 0:02:55.5]} 6. d4 {[%clk 0:02:55.4]} 6... cxd4 {[%clk 0:02:55.2]} 7. Nxd4
{[%clk 0:02:54.1]} 7... Bc5 {[%clk 0:02:55.7]} 8. Nb3 {[%clk 0:02:40.1]} 8...
Bb6 {[%clk 0:02:55.9]} 9. cxd5 {[%clk 0:02:38.5]} 9... exd5 {[%clk 0:02:56.3]}
10. Nc3 {[%clk 0:02:26.3]} 10... d4 {[%clk 0:02:55.5]} 11. Na4 {[%clk
0:02:24.7]} 11... O-O {[%clk 0:02:55.2]} 12. Bg5 {[%clk 0:02:19.3]} 12... Re8
{[%clk 0:02:54.4]} 13. Nxb6 {[%clk 0:02:04]} 13... axb6 {[%clk 0:02:54.5]} 14.
Bxf6 {[%clk 0:01:51]} 14... Qxf6 {[%clk 0:02:52.7]} 15. Bxc6 {[%clk 0:01:50.5]}
15... bxc6 {[%clk 0:02:52.8]} 16. Qxd4 {[%clk 0:01:49]} 16... Qxd4 {[%clk
0:02:52.7]} 17. Nxd4 {[%clk 0:01:49]} 17... c5 {[%clk 0:02:53]} 18. Nf3 {[%clk
0:01:31.4]} 18... Rxe2 {[%clk 0:02:50.8]} 19. Rfe1 {[%clk 0:01:31.9]} 19... Ba6
{[%clk 0:02:33.1]} 20. b3 {[%clk 0:01:26.4]} 20... Rb2 {[%clk 0:02:21.1]} 21.
Ne5 {[%clk 0:01:24.4]} 21... Bb7 {[%clk 0:01:55.7]} 22. Nd7 {[%clk 0:01:23.8]}
22... h6 {[%clk 0:01:50.2]} 23. Nxb6 {[%clk 0:01:07.5]} 23... Raxa2 {[%clk
0:01:48.9]} 24. Rxa2 {[%clk 0:01:08.4]} 24... Rxa2 {[%clk 0:01:49.8]} 25. Nd7
{[%clk 0:01:01.2]} 25... g6 {[%clk 0:01:39.7]} 26. Nxc5 {[%clk 0:01:00]} 26...
Bf3 {[%clk 0:01:38.3]} 27. Nd3 {[%clk 0:00:53.2]} 27... Ra3 {[%clk 0:01:36.7]}
28. Nc5 {[%clk 0:00:47.1]} 28... Bd5 {[%clk 0:01:33]} 29. Rb1 {[%clk 0:00:46.4]}
29... Kf8 {[%clk 0:01:28.9]} 30. b4 {[%clk 0:00:45.8]} 30... Ke7 {[%clk
0:01:28.7]} 31. h4 {[%clk 0:00:38.2]} 31... Kd6 {[%clk 0:01:26.3]} 32. Kf1
{[%clk 0:00:24.9]} 32... Bf3 {[%clk 0:01:20.5]} 33. Nb3 {[%clk 0:00:20.2]} 33...
Be4 {[%clk 0:01:16.1]} 34. Rd1+ {[%clk 0:00:19.8]} 34... Ke5 {[%clk 0:01:16.3]}
35. Nd4 {[%clk 0:00:18.3]} 35... Ra4 {[%clk 0:01:10.9]} 36. Ke1 {[%clk
0:00:13.3]} 36... Rxb4 {[%clk 0:01:08.2]} 37. f4+ {[%clk 0:00:13.3]} 37... Kf6
{[%clk 0:01:06.1]} 38. Kf2 {[%clk 0:00:11.8]} 38... Rb2+ {[%clk 0:01:03.4]} 39.
Ke3 {[%clk 0:00:12.2]} 39... Bb7 {[%clk 0:01:03.4]} 40. Ne2 {[%clk 0:00:11.5]}
40... Rb3+ {[%clk 0:01:00.6]} 41. Kf2 {[%clk 0:00:11.4]} 41... Rf3+ {[%clk
0:01:00.2]} 42. Ke1 {[%clk 0:00:11.5]} 42... Ba6 {[%clk 0:00:59.1]} 43. Rd6+
{[%clk 0:00:11.9]} 43... Kf5 {[%clk 0:00:56.1]} 44. Rxa6 {[%clk 0:00:12.8]}
44... Kg4 {[%clk 0:00:55.7]} 45. Rf6 {[%clk 0:00:12.4]} 45... Re3 {[%clk
0:00:53.8]} 46. Kd2 {[%clk 0:00:10.9]} 46... Kf3 {[%clk 0:00:53.4]} 47. Nd4+
{[%clk 0:00:10.2]} 47... Kf2 {[%clk 0:00:53.6]} 48. Rxf7 {[%clk 0:00:08.8]}
48... Rxg3 {[%clk 0:00:53.7]} 49. Rg7 {[%clk 0:00:08.3]} 49... Rg4 {[%clk
0:00:52.6]} 50. Ne6 {[%clk 0:00:07]} 50... Kg3 {[%clk 0:00:50.8]} 51. h5 {[%clk
0:00:05.9]} 51... gxh5 {[%clk 0:00:13.3]} 52. f5 {[%clk 0:00:06.2]} 52... Kh4
{[%clk 0:00:11.1]} 53. Rxg4+ {[%clk 0:00:05.7]} 53... hxg4 {[%clk 0:00:12]} 54.
f6 {[%clk 0:00:06.2]} 54... g3 {[%clk 0:00:11.3]} 55. Nf4 {[%clk 0:00:06.4]}
55... Kg4 {[%clk 0:00:11.4]} 56. Ng2 {[%clk 0:00:06]} 56... Kf3 {[%clk
0:00:11.2]} 57. Ne1+ {[%clk 0:00:06.2]} 57... Kg4 {[%clk 0:00:09.5]} 58. f7
{[%clk 0:00:07.1]} 58... h5 {[%clk 0:00:10]} 59. f8=Q {[%clk 0:00:07.1]} 59...
h4 {[%clk 0:00:10.9]} 60. Qg7+ {[%clk 0:00:06.4]} 60... Kh3 {[%clk 0:00:10.7]}
61. Qd7+ {[%clk 0:00:06.5]} 61... Kh2 {[%clk 0:00:11]} 62. Qg4 {[%clk
0:00:06.3]} 62... h3 {[%clk 0:00:08.9]} 63. Nf3+ {[%clk 0:00:06.4]} 63... Kg2
{[%clk 0:00:09.2]} 64. Ne1+ {[%clk 0:00:06.3]} 64... Kh2 {[%clk 0:00:09.5]} 65.
Qf3 {[%clk 0:00:05.9]} 65... g2 {[%clk 0:00:09]} 66. Qf2 {[%clk 0:00:05.9]}
66... Kh1 {[%clk 0:00:08.4]} 67. Qf3 {[%clk 0:00:06.2]} 67... Kh2 {[%clk
0:00:06.1]} 68. Qf2 {[%clk 0:00:05.5]} 68... Kh1 {[%clk 0:00:06.3]} 69. Nxg2
{[%clk 0:00:05.8]} 69... hxg2 {[%clk 0:00:06.4]} 70. Qh4+ {[%clk 0:00:06.2]}
70... Kg1 {[%clk 0:00:06.4]} 71. Ke3 {[%clk 0:00:06.6]} 71... Kf1 {[%clk
0:00:06.5]} 72. Qh3 {[%clk 0:00:06.3]} 72... Kg1 {[%clk 0:00:04.7]} 73. Kf3
{[%clk 0:00:06.6]} 1-0

[Event "Late-Titled-Tuesday-Blitz-October-24-2023"]
[Site "Chess.com"]
[Date "2023.10.24"]
[Round "8"]
[White "Mikhal867"]
[Black "dennisodessa"]
[Result "0-1"]
[WhiteElo "2436"]
[BlackElo "2558"]
[TimeControl "180+1"]
[EndTime "15:28:10 PDT"]
[Termination "dennisodessa won on time"]

1. d4 {[%clk 0:02:50.9]} 1... Nf6 {[%clk 0:02:58]} 2. c4 {[%clk 0:02:50.4]} 2...
e6 {[%clk 0:02:58.1]} 3. g3 {[%clk 0:02:49.9]} 3... Bb4+ {[%clk 0:02:58.1]} 4.
Bd2 {[%clk 0:02:49.4]} 4... a5 {[%clk 0:02:58.8]} 5. Bg2 {[%clk 0:02:49.3]} 5...
O-O {[%clk 0:02:59]} 6. Nf3 {[%clk 0:02:49]} 6... b6 {[%clk 0:02:58.9]} 7. Ne5
{[%clk 0:02:46.8]} 7... Ra7 {[%clk 0:02:59.4]} 8. O-O {[%clk 0:02:45.8]} 8...
Bb7 {[%clk 0:02:59.8]} 9. Nc3 {[%clk 0:02:31.3]} 9... Bxg2 {[%clk 0:02:56.5]}
10. Kxg2 {[%clk 0:02:31.1]} 10... Qe7 {[%clk 0:02:36.9]} 11. a3 {[%clk
0:02:28.6]} 11... Bxc3 {[%clk 0:02:36.7]} 12. Bxc3 {[%clk 0:02:28.6]} 12... d6
{[%clk 0:02:36.7]} 13. Nd3 {[%clk 0:02:25.3]} 13... Ne4 {[%clk 0:02:27.2]} 14.
Be1 {[%clk 0:02:24.9]} 14... a4 {[%clk 0:02:25.4]} 15. f3 {[%clk 0:02:23.5]}
15... Nf6 {[%clk 0:02:25.6]} 16. e4 {[%clk 0:02:22.9]} 16... c5 {[%clk
0:02:26.3]} 17. e5 {[%clk 0:02:21.4]} 17... Nfd7 {[%clk 0:02:24.9]} 18. exd6
{[%clk 0:01:33.1]} 18... Qxd6 {[%clk 0:02:25.8]} 19. dxc5 {[%clk 0:01:32.6]}
19... bxc5 {[%clk 0:02:26]} 20. Bf2 {[%clk 0:01:30.1]} 20... Nc6 {[%clk
0:02:23.6]} 21. Nb4 {[%clk 0:01:22.7]} 21... Qxd1 {[%clk 0:02:20]} 22. Rfxd1
{[%clk 0:01:20.4]} 22... Rc8 {[%clk 0:01:49.3]} 23. Bxc5 {[%clk 0:01:14.2]}
23... Nxc5 {[%clk 0:01:48.9]} 24. Nxc6 {[%clk 0:01:13.8]} 24... Rac7 {[%clk
0:01:49.8]} 25. Nd4 {[%clk 0:00:51.4]} 25... Nb7 {[%clk 0:01:44.1]} 26. b3
{[%clk 0:00:20.9]} 26... axb3 {[%clk 0:01:42.8]} 27. Rab1 {[%clk 0:00:20.2]}
27... Rxc4 {[%clk 0:01:42.9]} 28. Rxb3 {[%clk 0:00:20.4]} 28... Nc5 {[%clk
0:01:42.9]} 29. Rb4 {[%clk 0:00:19.5]} 29... Rc3 {[%clk 0:01:35]} 30. Nb5 {[%clk
0:00:19.7]} 30... Rc2+ {[%clk 0:01:33.7]} 31. Kh3 {[%clk 0:00:20]} 31... h5
{[%clk 0:01:26]} 32. Nd6 {[%clk 0:00:19.3]} 32... Ra8 {[%clk 0:01:23.9]} 33. Rc4
{[%clk 0:00:17]} 33... Rxc4 {[%clk 0:01:13.2]} 34. Nxc4 {[%clk 0:00:16.9]} 34...
Ra4 {[%clk 0:01:14]} 35. Rc1 {[%clk 0:00:17.2]} 35... Nb3 {[%clk 0:00:52.8]} 36.
Rc3 {[%clk 0:00:16]} 36... Nd4 {[%clk 0:00:53.3]} 37. Nb6 {[%clk 0:00:14.2]}
37... Ra6 {[%clk 0:00:50.6]} 38. Nc8 {[%clk 0:00:14.1]} 38... Nb5 {[%clk
0:00:46.4]} 39. Rb3 {[%clk 0:00:13.7]} 39... Nxa3 {[%clk 0:00:43.8]} 40. Ne7+
{[%clk 0:00:12.7]} 40... Kh7 {[%clk 0:00:43.6]} 41. Nc8 {[%clk 0:00:11]} 41...
Rc6 {[%clk 0:00:31.9]} 42. Rxa3 {[%clk 0:00:10.3]} 42... Rxc8 {[%clk 0:00:30.5]}
43. Ra5 {[%clk 0:00:10.4]} 43... Kg6 {[%clk 0:00:29.2]} 44. f4 {[%clk
0:00:10.5]} 44... Rc2 {[%clk 0:00:27.8]} 45. Rg5+ {[%clk 0:00:10.1]} 45... Kh6
{[%clk 0:00:28.1]} 46. Ra5 {[%clk 0:00:10]} 46... g6 {[%clk 0:00:26]} 47. Rb5
{[%clk 0:00:09.6]} 47... Kg7 {[%clk 0:00:26.1]} 48. Ra5 {[%clk 0:00:09.8]} 48...
Kf6 {[%clk 0:00:26.5]} 49. Rb5 {[%clk 0:00:10.2]} 49... Re2 {[%clk 0:00:26.2]}
50. Ra5 {[%clk 0:00:10.3]} 50... Kg7 {[%clk 0:00:22.1]} 51. Rb5 {[%clk
0:00:10.4]} 51... Kh6 {[%clk 0:00:20.5]} 52. Ra5 {[%clk 0:00:10.5]} 52... f6
{[%clk 0:00:21.1]} 53. Rb5 {[%clk 0:00:10.8]} 53... e5 {[%clk 0:00:21.7]} 54.
fxe5 {[%clk 0:00:10.6]} 54... fxe5 {[%clk 0:00:22.6]} 55. Rb6 {[%clk 0:00:09.8]}
55... Kg5 {[%clk 0:00:21.7]} 56. Re6 {[%clk 0:00:08.9]} 56... Kf5 {[%clk
0:00:20.1]} 57. Re7 {[%clk 0:00:08.7]} 57... e4 {[%clk 0:00:18.5]} 58. Rf7+
{[%clk 0:00:08.8]} 58... Kg5 {[%clk 0:00:18]} 59. Re7 {[%clk 0:00:08.9]} 59...
e3 {[%clk 0:00:18.5]} 60. Re5+ {[%clk 0:00:08.7]} 60... Kf6 {[%clk 0:00:18.7]}
61. Re8 {[%clk 0:00:08.8]} 61... Kf5 {[%clk 0:00:19.6]} 62. Rf8+ {[%clk
0:00:07.1]} 62... Ke4 {[%clk 0:00:19.8]} 63. Rf6 {[%clk 0:00:07.2]} 63... g5
{[%clk 0:00:16]} 64. g4 {[%clk 0:00:07.1]} 64... hxg4+ {[%clk 0:00:11.6]} 65.
Kxg4 {[%clk 0:00:07.4]} 65... Rxh2 {[%clk 0:00:11.3]} 66. Kxg5 {[%clk
0:00:05.2]} 66... Kd3 {[%clk 0:00:08.9]} 67. Rd6+ {[%clk 0:00:05.1]} 67... Ke2
{[%clk 0:00:08.3]} 68. Kf4 {[%clk 0:00:05.4]} 68... Rh4+ {[%clk 0:00:04.3]} 69.
Kg3 {[%clk 0:00:05.5]} 69... Rh8 {[%clk 0:00:04.4]} 70. Ra6 {[%clk 0:00:05.1]}
70... Rg8+ {[%clk 0:00:04.5]} 71. Kf4 {[%clk 0:00:04.9]} 71... Rf8+ {[%clk
0:00:05.1]} 72. Ke4 {[%clk 0:00:04.5]} 72... Re8+ {[%clk 0:00:05.6]} 73. Kf4
{[%clk 0:00:04.9]} 73... Kf2 {[%clk 0:00:05.4]} 74. Rh6 {[%clk 0:00:03]} 74...
e2 {[%clk 0:00:05.4]} 75. Rh2+ {[%clk 0:00:03]} 75... Ke1 {[%clk 0:00:06.1]} 76.
Kf3 {[%clk 0:00:02.6]} 76... Rf8+ {[%clk 0:00:05.3]} 77. Ke3 {[%clk 0:00:02.5]}
77... Re8+ {[%clk 0:00:06]} 78. Kd3 {[%clk 0:00:02.8]} 78... Kd1 {[%clk
0:00:05.8]} 0-1